[Event "1st Bangalore GM-Open-A 2024"]
[Site "Bangalore"]
[Date "2024.01.19"]
[Round "3.26"]
[White "Ritviz, Parab"]
[Black "Jai Sankar Subramanian"]
[Result "1-0"]
[ECO "C00"]
[WhiteElo "2391"]
[BlackElo "2025"]
[Annotator "RC"]
[PlyCount "77"]
[EventDate "2024.01.20"]
[EventType "swiss"]
[EventCountry "IND"]
[SourceTitle "playchess.com"]
[Source "ChessBase"]
[SourceQuality "1"]
[TimeControl "5400+30"]

1. g3 {[%emt 0:12:53]} c5 {[%emt 0:00:03]} 2. Bg2 {[%emt 0:00:36]} Nc6 {[%emt 0:00:04]} 3. e4 {[%emt 0:01:07]} e6 {[%emt 0:00:12]} 4. d3 {[%emt 0:00:23]} d5 {[%emt 0:00:09]} 5. Nd2 {[%emt 0:00:11]} Nf6 {[%emt 0:00:03]} 6. Ngf3 {[%emt 0:00:10]} Be7 {[%emt 0:00:38]} 7. O-O {[%emt 0:00:08]} O-O {[%emt 0:00:02]} 8. Re1 {[%emt 0:00:06]} Qc7 {[%emt 0:00:14]} 9. Qe2 {[%emt 0:01:16]} b5 {[%emt 0:02:29]} 10. e5 {[%emt 0:01:42]} Nd7 {[%emt 0:00:01]} 11. Nf1 {[%emt 0:00:26]} a5 {[%emt 0:00:16]} 12. Bf4 {[%emt 0:00:36]} b4 {[%emt 0:00:07]} 13. Ne3 {[%emt 0:00:34]} Ba6 {[%emt 0:01:25]} 14. Nxd5 {[%emt 0:15:59]} exd5 {[%emt 0:00:24]} 15. e6 {[%emt 0:00:07]} Bd6 {[%emt 0:00:14]} 16. Bxd6 {[%emt 0:01:28]} Qxd6 {[%emt 0:00:03]} 17. exd7 {[%emt 0:00:10]} Qxd7 {[%emt 0:00:23]} 18. Qe3 {[%emt 0:01:46]} Qd6 {[%emt 0:05:30]} 19. d4 {[%emt 0:07:48]} c4 {[%emt 0:01:51]} 20. Ne5 {[%emt 0:02:44]} Rad8 {[%emt 0:03:21]} 21. a3 {[%emt 0:02:59]} Bc8 {[%emt 0:02:32]} 22. Qd2 {[%emt 0:08:27]} Bf5 {[%emt 0:04:33]} 23. Nxc6 {[%emt 0:18:52]} Qxc6 {[%emt 0:00:11]} 24. axb4 {[%emt 0:02:30]} axb4 {[%emt 0:00:11]} 25. c3 {[%emt 0:00:39]} b3 {[%emt 0:01:37]} 26. Re5 {[%emt 0:04:40]} Be6 {[%emt 0:05:24]} 27. Rae1 {[%emt 0:00:08]} Rfe8 {[%emt 0:00:43]} 28. Qe2 {[%emt 0:01:06]} Kf8 {[%emt 0:06:56]} 29. f4 {[%emt 0:01:28]} g6 {[%emt 0:00:36]} 30. g4 {[%emt 0:00:30]} Qc8 {[%emt 0:02:21]} 31. h3 {[%emt 0:04:39]} Rd6 {[%emt 0:05:06]} 32. f5 {[%emt 0:02:51]} Bd7 {[%emt 0:00:01]} 33. Qe3 {[%emt 0:00:20]} Rd8 {[%emt 0:02:33]} 34. Rxd5 {[%emt 0:05:15]} Rf6 {[%emt 0:04:49]} 35. Qe7+ {[%emt 0:00:20]} Kg7 {[%emt 0:00:01]} 36. Re6 {[%emt 0:00:07]} Rxe6 {[%emt 0:02:22]} 37. fxe6 {[%emt 0:00:03]} Qa6 {[%emt 0:00:41]} 38. Qxf7+ {[%emt 0:00:20]} Kh6 {[%emt 0:00:14]} 39. Rh5+ {[%emt 0:00:09]} 1-0

[Event "1st Bangalore GM-Open-A 2024"]
[Site "Bangalore"]
[Date "2024.01.19"]
[Round "3.27"]
[White "Dhrupad Kashyap"]
[Black "Audi Ameya"]
[Result "0-1"]
[ECO "E65"]
[WhiteElo "1998"]
[BlackElo "2385"]
[Annotator "RC"]
[PlyCount "104"]
[EventDate "2024.01.20"]
[EventType "swiss"]
[EventCountry "IND"]
[SourceTitle "playchess.com"]
[Source "ChessBase"]
[SourceQuality "1"]
[TimeControl "5400+30"]

1. Nf3 {[%emt 0:01:52]} Nf6 {[%emt 0:00:03]} 2. c4 {[%emt 0:00:26]} g6 {[%emt 0:00:07]} 3. d4 {[%emt 0:00:24]} Bg7 {[%emt 0:00:06]} 4. g3 {[%emt 0:00:04]} O-O {[%emt 0:00:48]} 5. Bg2 {[%emt 0:00:02]} c5 {[%emt 0:00:21]} 6. O-O {[%emt 0:02:30]} d6 {[%emt 0:00:11]} 7. Nc3 {[%emt 0:02:54]} Nc6 {[%emt 0:00:06]} 8. dxc5 {[%emt 0:01:53]} dxc5 {[%emt 0:00:05]} 9. Bf4 {[%emt 0:01:47]} Nh5 {[%emt 0:00:37]} 10. Be3 {[%emt 0:04:05]} b6 {[%emt 0:00:05]} 11. Qa4 {[%emt 0:01:35]} Bb7 {[%emt 0:03:24]} 12. Rfd1 {[%emt 0:03:02]} Qe8 {[%emt 0:00:33]} 13. Nd5 {[%emt 0:15:29]} Rd8 {[%emt 0:10:06]} 14. Qc2 {[%emt 0:15:23]} e6 {[%emt 0:04:49]} 15. Nc3 {[%emt 0:01:12]} Nd4 {[%emt 0:10:53]} 16. Nxd4 {[%emt 0:01:44]} Bxg2 {[%emt 0:00:04]} 17. Nxe6 {[%emt 0:01:41]} Qxe6 {[%emt 0:00:05]} 18. Kxg2 {[%emt 0:00:31]} Qxc4 {[%emt 0:00:09]} 19. Qb3 {[%emt 0:01:17]} Qg4 {[%emt 0:13:14]} 20. h3 {[%emt 0:04:09]} Qc8 {[%emt 0:01:15]} 21. Qc4 {[%emt 0:08:04]} Rfe8 {[%emt 0:06:53]} 22. a4 {[%emt 0:02:05]} Be5 {[%emt 0:09:56]} 23. Bg5 {[%emt 0:02:21]} Rd4 {[%emt 0:02:38]} 24. Rxd4 {[%emt 0:04:15]} cxd4 {[%emt 0:00:06]} 25. Qxc8 {[%emt 0:00:11]} Rxc8 {[%emt 0:00:03]} 26. Nb5 {[%emt 0:00:28]} f6 {[%emt 0:05:08]} 27. Rc1 {[%emt 0:01:09]} Re8 {[%emt 0:00:28]} 28. g4 {[%emt 0:02:18]} fxg5 {[%emt 0:04:39]} 29. gxh5 {[%emt 0:00:09]} a6 {[%emt 0:00:07]} 30. Na7 {[%emt 0:01:26]} gxh5 {[%emt 0:02:42]} 31. Rc8 {[%emt 0:02:55]} Kf7 {[%emt 0:03:27]} 32. Rxe8 {[%emt 0:00:17]} Kxe8 {[%emt 0:00:03]} 33. Nc6 {[%emt 0:00:15]} d3 {[%emt 0:00:34]} 34. exd3 {[%emt 0:02:17]} Bxb2 {[%emt 0:00:04]} 35. f4 {[%emt 0:00:26]} Kd7 {[%emt 0:03:50]} 36. Nb4 {[%emt 0:02:29]} a5 {[%emt 0:00:18]} 37. Nc2 {[%emt 0:00:24]} gxf4 {[%emt 0:01:49]} 38. Kf3 {[%emt 0:00:04]} Be5 {[%emt 0:00:22]} 39. Ke4 {[%emt 0:00:25]} Bb8 {[%emt 0:00:51]} 40. Nd4 {[%emt 0:02:00]} Kd6 {[%emt 0:00:44]} 41. Nb3 {[%emt 0:01:58]} Kc6 {[%emt 0:00:41]} 42. Nd4+ {[%emt 0:02:47]} Kc5 {[%emt 0:00:24]} 43. Nc2 {[%emt 0:00:01]} b5 {[%emt 0:00:32]} 44. d4+ {[%emt 0:00:37]} Kb6 {[%emt 0:00:08]} 45. axb5 {[%emt 0:01:11]} Kxb5 {[%emt 0:00:11]} 46. Kd3 {[%emt 0:01:53]} a4 {[%emt 0:00:49]} 47. d5 {[%emt 0:04:18]} Kc5 {[%emt 0:01:07]} 48. Ke4 {[%emt 0:01:51]} Kc4 {[%emt 0:00:12]} 49. Na3+ {[%emt 0:00:26]} Kb3 {[%emt 0:00:31]} 50. Nb5 {[%emt 0:02:11]} a3 {[%emt 0:00:25]} 51. d6 {[%emt 0:00:03]} Bxd6 {[%emt 0:00:29]} 52. Nxa3 {[%emt 0:00:04]} Kxa3 {[%emt 0:00:05]} 0-1

[Event "1st Bangalore GM-Open-A 2024"]
[Site "Bangalore"]
[Date "2024.01.19"]
[Round "3.28"]
[White "Kushagra Mohan"]
[Black "Bhosale Shriraj"]
[Result "1-0"]
[ECO "B12"]
[WhiteElo "2374"]
[BlackElo "1946"]
[Annotator "RC"]
[PlyCount "88"]
[EventDate "2024.01.20"]
[EventType "swiss"]
[EventCountry "IND"]
[SourceTitle "playchess.com"]
[Source "ChessBase"]
[SourceQuality "1"]
[TimeControl "5400+30"]

1. e4 {[%emt 0:02:58]} c6 {[%emt 0:00:13]} 2. d4 {[%emt 0:00:04]} d5 {[%emt 0:00:04]} 3. e5 {[%emt 0:00:01]} c5 {[%emt 0:00:42]} 4. c3 {[%emt 0:00:04]} Nc6 {[%emt 0:01:01]} 5. Be2 {[%emt 0:00:04]} cxd4 {[%emt 0:00:48]} 6. cxd4 {[%emt 0:00:04]} e6 {[%emt 0:01:09]} 7. Nf3 {[%emt 0:00:52]} Nge7 {[%emt 0:00:24]} 8. Na3 {[%emt 0:00:50]} Nf5 {[%emt 0:00:47]} 9. Nc2 {[%emt 0:00:06]} Be7 {[%emt 0:00:18]} 10. O-O {[%emt 0:00:06]} Bd7 {[%emt 0:04:19]} 11. Bd3 {[%emt 0:02:29]} h5 {[%emt 0:04:02]} 12. Qd2 {[%emt 0:03:43]} Rg8 {[%emt 0:05:24]} 13. Bxf5 {[%emt 0:03:09]} exf5 {[%emt 0:00:23]} 14. Ne3 {[%emt 0:00:16]} Be6 {[%emt 0:00:52]} 15. Qd3 {[%emt 0:01:06]} Qd7 {[%emt 0:02:33]} 16. h4 {[%emt 0:00:09]} f4 {[%emt 0:05:18]} 17. Nd1 {[%emt 0:02:45]} Bf5 {[%emt 0:00:39]} 18. Qd2 {[%emt 0:02:04]} Be4 {[%emt 0:11:03]} 19. Qxf4 {[%emt 0:00:35]} Qg4 {[%emt 0:03:32]} 20. Nc3 {[%emt 0:05:59]} Qxf4 {[%emt 0:08:04]} 21. Bxf4 {[%emt 0:00:02]} Bxf3 {[%emt 0:00:10]} 22. gxf3 {[%emt 0:00:02]} g5 {[%emt 0:00:22]} 23. Be3 {[%emt 0:01:00]} gxh4+ {[%emt 0:02:31]} 24. Kh2 {[%emt 0:00:40]} O-O-O {[%emt 0:00:08]} 25. Rg1 {[%emt 0:00:18]} Rg6 {[%emt 0:08:58]} 26. f4 {[%emt 0:03:26]} Bb4 {[%emt 0:04:19]} 27. f5 {[%emt 0:02:09]} Rg4 {[%emt 0:01:13]} 28. Ne2 {[%emt 0:06:05]} Ne7 {[%emt 0:04:09]} 29. a3 {[%emt 0:01:16]} Ba5 {[%emt 0:00:25]} 30. Bg5 {[%emt 0:00:21]} Nxf5 {[%emt 0:06:52]} 31. Bxd8 {[%emt 0:00:17]} Kxd8 {[%emt 0:02:44]} 32. f3 {[%emt 0:02:11]} Rxg1 {[%emt 0:04:43]} 33. Rxg1 {[%emt 0:00:01]} Bb6 {[%emt 0:00:09]} 34. Rg8+ {[%emt 0:00:02]} Kd7 {[%emt 0:00:33]} 35. Rb8 {[%emt 0:00:48]} Nxd4 {[%emt 0:02:11]} 36. Rxb7+ {[%emt 0:01:26]} Ke6 {[%emt 0:00:06]} 37. Rxb6+ {[%emt 0:05:27]} axb6 {[%emt 0:00:07]} 38. Nxd4+ {[%emt 0:00:01]} Kxe5 {[%emt 0:00:09]} 39. Nc6+ {[%emt 0:00:45]} Kf4 {[%emt 0:03:27]} 40. a4 {[%emt 0:02:09]} Kxf3 {[%emt 0:00:34]} 41. b4 {[%emt 0:00:02]} Ke4 {[%emt 0:01:25]} 42. a5 {[%emt 0:00:06]} bxa5 {[%emt 0:01:09]} 43. bxa5 {[%emt 0:00:01]} d4 {[%emt 0:00:13]} 44. Nxd4 {[%emt 0:00:03]} Kd5 {[%emt 0:00:17]} 1-0

[Event "1st Bangalore GM-Open-A 2024"]
[Site "Bangalore"]
[Date "2024.01.19"]
[Round "3.29"]
[White "Pattnayak Nilsu"]
[Black "Gonzales, Jayson"]
[Result "1-0"]
[ECO "B06"]
[WhiteElo "1987"]
[BlackElo "2367"]
[Annotator "RC"]
[PlyCount "67"]
[EventDate "2024.01.20"]
[EventType "swiss"]
[EventCountry "IND"]
[SourceTitle "playchess.com"]
[Source "ChessBase"]
[SourceQuality "1"]
[TimeControl "5400+30"]

1. e4 {[%emt 0:00:32]} g6 {[%emt 0:02:03]} 2. d4 {[%emt 0:00:08]} Bg7 {[%emt 0:00:02]} 3. f4 {[%emt 0:00:50]} d5 {[%emt 0:01:38]} 4. e5 {[%emt 0:01:38]} f6 {[%emt 0:02:55]} 5. Nf3 {[%emt 0:00:20]} Nh6 {[%emt 0:00:34]} 6. Bd3 {[%emt 0:03:36]} Bg4 {[%emt 0:13:52]} 7. O-O {[%emt 0:02:17]} O-O {[%emt 0:00:47]} 8. Be3 {[%emt 0:01:00]} c5 {[%emt 0:03:06]} 9. dxc5 {[%emt 0:09:47]} fxe5 {[%emt 0:01:19]} 10. fxe5 {[%emt 0:00:04]} Nf7 {[%emt 0:03:12]} 11. Nbd2 {[%emt 0:05:10]} Nxe5 {[%emt 0:07:27]} 12. Be2 {[%emt 0:00:37]} Nf7 {[%emt 0:10:13]} 13. h3 {[%emt 0:13:09]} Bxf3 {[%emt 0:01:39]} 14. Nxf3 {[%emt 0:00:11]} Nc6 {[%emt 0:02:31]} 15. c3 {[%emt 0:00:05]} e6 {[%emt 0:01:46]} 16. Nd4 {[%emt 0:03:51]} Qe7 {[%emt 0:02:04]} 17. Bg4 {[%emt 0:02:32]} Ncd8 {[%emt 0:09:42]} 18. Qd2 {[%emt 0:01:41]} h5 {[%emt 0:00:58]} 19. Be2 {[%emt 0:00:54]} Nc6 {[%emt 0:00:25]} 20. Rae1 {[%emt 0:08:08]} e5 {[%emt 0:02:37]} 21. Nf3 {[%emt 0:08:18]} Rad8 {[%emt 0:00:48]} 22. Kh1 {[%emt 0:02:27]} Kh7 {[%emt 0:03:54]} 23. b4 {[%emt 0:03:28]} e4 {[%emt 0:04:18]} 24. Ng5+ {[%emt 0:02:07]} Nxg5 {[%emt 0:00:56]} 25. Bxg5 {[%emt 0:00:04]} Bf6 {[%emt 0:00:10]} 26. Bxf6 {[%emt 0:00:50]} Rxf6 {[%emt 0:00:03]} 27. Rxf6 {[%emt 0:00:05]} Qxf6 {[%emt 0:00:29]} 28. Rf1 {[%emt 0:00:04]} Qe7 {[%emt 0:00:25]} 29. b5 {[%emt 0:05:55]} Ne5 {[%emt 0:03:13]} 30. Qd4 {[%emt 0:00:30]} Kh6 {[%emt 0:11:37]} 31. a4 {[%emt 0:01:22]} Kh7 {[%emt 0:06:09]} 32. Rb1 {[%emt 0:10:37]} Kh6 {[%emt 0:01:12]} 33. a5 {[%emt 0:00:16]} Rc8 {[%emt 0:01:48]} 34. a6 {[%emt 0:05:37]} 1-0

[Event "1st Bangalore GM-Open-A 2024"]
[Site "Bangalore"]
[Date "2024.01.19"]
[Round "3.30"]
[White "Sadbhav Rautela"]
[Black "Ram Aravind L N"]
[Result "0-1"]
[ECO "B40"]
[WhiteElo "1949"]
[BlackElo "2332"]
[Annotator "RC"]
[PlyCount "76"]
[EventDate "2024.01.20"]
[EventType "swiss"]
[EventCountry "IND"]
[SourceTitle "playchess.com"]
[Source "ChessBase"]
[SourceQuality "1"]
[TimeControl "5400+30"]

1. e4 {[%emt 0:00:28]} c5 {[%emt 0:02:48]} 2. Nf3 {[%emt 0:00:14]} e6 {[%emt 0:00:05]} 3. g3 {[%emt 0:00:10]} Nc6 {[%emt 0:00:43]} 4. Bg2 {[%emt 0:00:26]} d6 {[%emt 0:01:49]} 5. O-O {[%emt 0:01:14]} Nf6 {[%emt 0:01:49]} 6. Re1 {[%emt 0:02:44]} Be7 {[%emt 0:00:04]} 7. d4 {[%emt 0:00:40]} cxd4 {[%emt 0:00:20]} 8. Nxd4 {[%emt 0:00:09]} e5 {[%emt 0:07:03]} 9. Nb3 {[%emt 0:04:20]} Bg4 {[%emt 0:00:23]} 10. Qd3 {[%emt 0:01:24]} O-O {[%emt 0:00:23]} 11. Bg5 {[%emt 0:04:08]} Rc8 {[%emt 0:12:31]} 12. Bxf6 {[%emt 0:01:48]} Bxf6 {[%emt 0:01:25]} 13. c4 {[%emt 0:05:44]} b5 {[%emt 0:05:25]} 14. cxb5 {[%emt 0:05:58]} Nb4 {[%emt 0:00:19]} 15. Qd2 {[%emt 0:00:44]} Nc2 {[%emt 0:00:06]} 16. Nc3 {[%emt 0:00:13]} Nxa1 {[%emt 0:00:32]} 17. Nxa1 {[%emt 0:00:08]} Bg5 {[%emt 0:04:39]} 18. Qd3 {[%emt 0:02:32]} Be6 {[%emt 0:05:25]} 19. Nc2 {[%emt 0:03:32]} Bc4 {[%emt 0:00:46]} 20. Qd1 {[%emt 0:00:25]} Qb6 {[%emt 0:03:41]} 21. Bf1 {[%emt 0:09:25]} Be6 {[%emt 0:01:42]} 22. Nb4 {[%emt 0:01:14]} f5 {[%emt 0:14:09]} 23. Bh3 {[%emt 0:08:16]} g6 {[%emt 0:04:55]} 24. a4 {[%emt 0:11:00]} Kg7 {[%emt 0:01:51]} 25. Nc6 {[%emt 0:06:38]} f4 {[%emt 0:07:32]} 26. a5 {[%emt 0:05:05]} Qc5 {[%emt 0:00:27]} 27. b4 {[%emt 0:06:53]} Qc4 {[%emt 0:03:23]} 28. Bxe6 {[%emt 0:01:48]} Qxe6 {[%emt 0:00:01]} 29. Nd5 {[%emt 0:03:34]} Rf7 {[%emt 0:00:48]} 30. Qc2 {[%emt 0:07:41]} Qh3 {[%emt 0:01:34]} 31. Qd3 {[%emt 0:05:11]} Rcf8 {[%emt 0:00:02]} 32. Qf1 {[%emt 0:02:09]} Qd7 {[%emt 0:01:52]} 33. Re2 {[%emt 0:00:33]} h5 {[%emt 0:01:30]} 34. Rc2 {[%emt 0:00:29]} fxg3 {[%emt 0:00:59]} 35. hxg3 {[%emt 0:00:09]} h4 {[%emt 0:00:07]} 36. Qd3 {[%emt 0:00:52]} Rf3 {[%emt 0:01:24]} 37. Qd1 {[%emt 0:00:29]} Qg4 {[%emt 0:00:20]} 38. Rc3 {[%emt 0:00:29]} Rxg3+ {[%emt 0:01:35]} 0-1

[Event "1st Bangalore GM-Open-A 2024"]
[Site "Bangalore"]
[Date "2024.01.19"]
[Round "3.31"]
[White "Anup Shankar R"]
[Black "Neelotpal, Das"]
[Result "0-1"]
[ECO "C27"]
[WhiteElo "1912"]
[BlackElo "2329"]
[Annotator "RC"]
[PlyCount "91"]
[EventDate "2024.01.20"]
[EventType "swiss"]
[EventCountry "IND"]
[SourceTitle "playchess.com"]
[Source "ChessBase"]
[SourceQuality "1"]
[TimeControl "5400+30"]

1. e4 {[%emt 0:03:50]} e5 {[%emt 0:00:04]} 2. Bc4 {[%emt 0:00:08]} Nf6 {[%emt 0:00:07]} 3. Nc3 {[%emt 0:00:09]} Nxe4 {[%emt 0:03:05]} 4. Qh5 {[%emt 0:00:03]} Nd6 {[%emt 0:00:06]} 5. Qxe5+ {[%emt 0:00:11]} Qe7 {[%emt 0:01:15]} 6. Qxe7+ {[%emt 0:00:03]} Bxe7 {[%emt 0:00:08]} 7. Bb3 {[%emt 0:00:15]} Nf5 {[%emt 0:02:01]} 8. Nf3 {[%emt 0:00:19]} c6 {[%emt 0:00:21]} 9. d4 {[%emt 0:02:04]} d5 {[%emt 0:01:35]} 10. O-O {[%emt 0:00:37]} f6 {[%emt 0:02:46]} 11. Re1 {[%emt 0:03:24]} Kf7 {[%emt 0:03:25]} 12. Ne2 {[%emt 0:02:51]} Nd6 {[%emt 0:02:18]} 13. Nd2 {[%emt 0:04:02]} a5 {[%emt 0:04:35]} 14. a4 {[%emt 0:03:53]} Re8 {[%emt 0:11:34]} 15. c4 {[%emt 0:15:52]} dxc4 {[%emt 0:01:10]} 16. Nxc4 {[%emt 0:00:03]} Be6 {[%emt 0:02:14]} 17. Nxd6+ {[%emt 0:01:41]} Bxd6 {[%emt 0:00:06]} 18. Bxe6+ {[%emt 0:00:34]} Rxe6 {[%emt 0:00:05]} 19. Be3 {[%emt 0:00:22]} Na6 {[%emt 0:06:09]} 20. Nc3 {[%emt 0:11:18]} Nb4 {[%emt 0:01:02]} 21. Rad1 {[%emt 0:00:20]} Rd8 {[%emt 0:02:06]} 22. g3 {[%emt 0:01:52]} Bc7 {[%emt 0:04:35]} 23. Rd2 {[%emt 0:01:12]} Nd5 {[%emt 0:00:45]} 24. Kg2 {[%emt 0:03:16]} g5 {[%emt 0:09:25]} 25. Kf3 {[%emt 0:10:30]} h5 {[%emt 0:07:40]} 26. Rc1 {[%emt 0:03:18]} g4+ {[%emt 0:03:59]} 27. Ke2 {[%emt 0:01:40]} f5 {[%emt 0:02:16]} 28. Nxd5 {[%emt 0:01:27]} Rxd5 {[%emt 0:00:04]} 29. Rc5 {[%emt 0:07:30]} Red6 {[%emt 0:04:53]} 30. Bf4 {[%emt 0:00:58]} Re6+ {[%emt 0:00:09]} 31. Be3 {[%emt 0:00:06]} Rxc5 {[%emt 0:05:28]} 32. dxc5 {[%emt 0:00:33]} Re7 {[%emt 0:00:03]} 33. Kd3 {[%emt 0:04:38]} Rd7+ {[%emt 0:04:32]} 34. Kc4 {[%emt 0:00:33]} Re7 {[%emt 0:03:49]} 35. Bg5 {[%emt 0:03:23]} Re4+ {[%emt 0:01:26]} 36. Rd4 {[%emt 0:00:42]} Rxd4+ {[%emt 0:00:50]} 37. Kxd4 {[%emt 0:00:03]} Ke6 {[%emt 0:00:17]} 38. Bf4 {[%emt 0:01:38]} Bd8 {[%emt 0:00:22]} 39. b3 {[%emt 0:00:32]} b5 {[%emt 0:01:36]} 40. axb5 {[%emt 0:02:32]} cxb5 {[%emt 0:00:12]} 41. Bd2 {[%emt 0:08:59]} Bf6+ {[%emt 0:04:32]} 42. Kd3 {[%emt 0:00:01]} a4 {[%emt 0:01:07]} 43. bxa4 {[%emt 0:01:19]} bxa4 {[%emt 0:00:35]} 44. Kc4 {[%emt 0:00:02]} a3 {[%emt 0:00:33]} 45. Kb3 {[%emt 0:01:01]} Bd4 {[%emt 0:02:04]} 46. c6 {[%emt 0:03:08]} 0-1

[Event "1st Bangalore GM-Open-A 2024"]
[Site "Bangalore"]
[Date "2024.01.19"]
[Round "3.32"]
[White "Hegde, Ravi Gopal"]
[Black "Mohamed Anees M"]
[Result "0-1"]
[ECO "B22"]
[WhiteElo "1916"]
[BlackElo "2319"]
[Annotator "RC"]
[PlyCount "92"]
[EventDate "2024.01.20"]
[EventType "swiss"]
[EventCountry "IND"]
[SourceTitle "playchess.com"]
[Source "ChessBase"]
[SourceQuality "1"]
[TimeControl "5400+30"]

1. e4 {[%emt 0:04:05]} c5 {[%emt 0:00:08]} 2. c3 {[%emt 0:00:31]} d5 {[%emt 0:01:38]} 3. exd5 {[%emt 0:04:13]} Qxd5 {[%emt 0:00:06]} 4. d4 {[%emt 0:00:06]} Nc6 {[%emt 0:00:27]} 5. Nf3 {[%emt 0:00:14]} Bg4 {[%emt 0:02:19]} 6. Be2 {[%emt 0:01:01]} e6 {[%emt 0:05:29]} 7. c4 {[%emt 0:01:10]} Qd7 {[%emt 0:01:47]} 8. d5 {[%emt 0:00:06]} exd5 {[%emt 0:00:32]} 9. cxd5 {[%emt 0:00:09]} Bxf3 {[%emt 0:00:23]} 10. Bxf3 {[%emt 0:00:11]} Nd4 {[%emt 0:00:05]} 11. O-O {[%emt 0:01:26]} O-O-O {[%emt 0:00:59]} 12. Nc3 {[%emt 0:00:55]} Ne7 {[%emt 0:05:03]} 13. Be3 {[%emt 0:02:57]} Nxf3+ {[%emt 0:02:22]} 14. Qxf3 {[%emt 0:00:11]} Nf5 {[%emt 0:17:05]} 15. Rac1 {[%emt 0:06:52]} Kb8 {[%emt 0:03:14]} 16. Rfd1 {[%emt 0:00:48]} Nxe3 {[%emt 0:04:45]} 17. Qxe3 {[%emt 0:00:09]} f5 {[%emt 0:00:56]} 18. Qe6 {[%emt 0:16:56]} Be7 {[%emt 0:11:56]} 19. Qe3 {[%emt 0:07:17]} Rhe8 {[%emt 0:00:00]} 20. a4 {[%emt 0:00:39]} Bd6 {[%emt 0:00:00]} 21. Qd3 {[%emt 0:01:17]} a6 {[%emt 0:00:00]} 22. g3 {[%emt 0:01:02]} h5 {[%emt 0:00:00]} 23. Ne2 {[%emt 0:06:53]} Qxa4 {[%emt 0:06:47]} 24. Rc4 {[%emt 0:00:08]} Qb5 {[%emt 0:00:44]} 25. b3 {[%emt 0:01:41]} g6 {[%emt 0:05:32]} 26. Nc3 {[%emt 0:00:31]} Qa5 {[%emt 0:02:03]} 27. Ra4 {[%emt 0:02:35]} Qb6 {[%emt 0:00:32]} 28. Rc4 {[%emt 0:01:35]} Re5 {[%emt 0:02:15]} 29. Rc1 {[%emt 0:06:11]} Bf8 {[%emt 0:02:21]} 30. f4 {[%emt 0:02:57]} Ree8 {[%emt 0:00:12]} 31. Na4 {[%emt 0:00:51]} Qb5 {[%emt 0:05:23]} 32. Nc3 {[%emt 0:03:11]} Qd7 {[%emt 0:01:11]} 33. Ra4 {[%emt 0:06:02]} Bg7 {[%emt 0:01:01]} 34. Rd1 {[%emt 0:00:28]} Bd4+ {[%emt 0:00:31]} 35. Rxd4 {[%emt 0:00:07]} cxd4 {[%emt 0:00:03]} 36. Qxd4 {[%emt 0:00:09]} h4 {[%emt 0:01:28]} 37. b4 {[%emt 0:00:45]} hxg3 {[%emt 0:00:05]} 38. hxg3 {[%emt 0:00:06]} Qe7 {[%emt 0:04:48]} 39. Kf2 {[%emt 0:00:33]} Qd6 {[%emt 0:06:02]} 40. Ra1 {[%emt 0:00:59]} Rc8 {[%emt 0:00:24]} 41. Ra3 {[%emt 0:01:32]} Re7 {[%emt 0:04:08]} 42. Ra5 {[%emt 0:01:27]} Rec7 {[%emt 0:01:02]} 43. Ra3 {[%emt 0:01:37]} Rc4 {[%emt 0:00:26]} 44. Qa7+ {[%emt 0:00:14]} Kxa7 {[%emt 0:00:14]} 45. Nb5+ {[%emt 0:00:08]} Kb6 {[%emt 0:00:14]} 46. Nxd6 {[%emt 0:00:06]} Rc2+ {[%emt 0:00:02]} 0-1

[Event "1st Bangalore GM-Open-A 2024"]
[Site "Bangalore"]
[Date "2024.01.19"]
[Round "3.33"]
[White "Shyam, Sundar M."]
[Black "Rohith Yadav B R"]
[Result "1-0"]
[ECO "C73"]
[WhiteElo "2497"]
[BlackElo "1900"]
[Annotator "TA"]
[PlyCount "67"]
[EventDate "2024.01.20"]
[EventType "swiss"]
[EventCountry "IND"]
[SourceTitle "playchess.com"]
[Source "ChessBase"]
[SourceQuality "1"]
[TimeControl "5400+30"]

{[%evp 13,67,8,10,-18,0,-6,10,-1,33,-2,27,28,35,20,61,27,57,23,44,49,59,61,71,66,78,61,65,60,104,103,118,93,119,116,160,169,262,265,290,277,274,270,1226,1208,1642,632,840,614,1279,1282,1280,1278,1223,1159,29973,2886]} 1. e4 {[%emt 0:02:38]} e5 {[%emt 0:00:07]} 2. Nf3 {[%emt 0:00:16][%cal Bg1f3,Bf3d4,Bd4b3,Bb3a5][%mdl 32]} Nc6 {[%emt 0:00:01]} 3. Bb5 {[%emt 0:00:41]} a6 {[%emt 0:00:08]} 4. Ba4 {[%emt 0:00:14]} d6 {[%emt 0:00:30]} 5. Bxc6+ {[%emt 0:00:31]} bxc6 {[%emt 0:00:05]} 6. d4 {[%emt 0:00:04]} exd4 {[%emt 0:00:37]} 7. Nxd4 {[%emt 0:00:06]} c5 {[%emt 0:02:27] The main line 7...c5 scores better than 7...Bd7.} 8. Nb3 {[%emt 0:00:56] C73: Ruy Lopez: Deferred Steinitz: 5 Bxc6+.} Nf6 {[%emt 0:04:15]} 9. Nc3 {[%emt 0:00:09]} Be7 {[%emt 0:03:23]} 10. O-O {[%emt 0:00:13] The position is equal.} O-O {[%emt 0:00:05]} 11. Bf4 {[%emt 0:00:32]} Be6 {[%emt 0:01:48] [#]} 12. Na5 $146 {[%emt 0:10:16]} ({Predecessor:} 12. e5 dxe5 13. Bxe5 Qb8 14. Rb1 Ng4 15. Bg3 Rd8 16. Qe2 Qb6 17. Rfe1 Rd7 {½-½ Ochoa de Echaguen,F (2400)-Estremera Panos,S (2295) ESP-ch Spain 1990 (3)}) 12... Qd7 {[%emt 0:18:19]} 13. Qe2 {[%emt 0:06:09]} g6 {[%emt 0:09:54]} 14. Rad1 {[%emt 0:12:02]} Rfe8 {[%emt 0:06:36]} 15. h3 {[%emt 0:01:42]} Nh5 {[%emt 0:20:21]} 16. Bh2 {[%emt 0:12:23]} Ng7 {[%emt 0:02:23]} 17. Qf3 {[%emt 0:02:51]} f6 {[%emt 0:11:12]} 18. b3 {[%emt 0:01:42]} Rf8 {[%emt 0:02:24]} 19. Rfe1 {[%emt 0:03:06]} Rae8 {[%emt 0:01:52]} 20. Qd3 {[%emt 0:01:56]} Ra8 {[%emt 0:01:46]} 21. Bf4 {[%emt 0:08:30]} Rfe8 {[%emt 0:02:21]} 22. Bc1 {[%emt 0:02:50]} c6 {[%emt 0:04:25]} 23. Bf4 {[%emt 0:03:00][%cal Rf4d6]} Red8 {[%emt 0:00:37]} 24. Na4 {[%emt 0:04:19] White has more active pieces.} Rab8 {[%emt 0:01:06]} (24... g5 $142) 25. Nxc5 $1 $18 {[%emt 0:00:29][%mdl 64] [#] Pin, Double Attack} (25. Qxa6 Ra8 26. Qb6 Rdb8 27. Nxc5 Rxb6 $11) 25... Qc7 {[%emt 0:01:07]} 26. Nxe6 {[%emt 0:05:51][%mdl 64] Remove Defender} ({Less strong is} 26. Qxa6 Ra8 27. Qxc6 (27. Nxe6 Rxa6 28. Nxc7 Rxa5 $16) 27... Qxa5 $16) (26. Nxa6 Qxa5 27. Nxb8 Rxb8 $14) 26... Nxe6 {[%emt 0:00:09]} 27. Qc4 {[%emt 0:00:02]} Qxa5 $2 {[%emt 0:01:08]} (27... Qd7 28. e5 d5) 28. Qxe6+ {[%emt 0:00:05]} Kf8 {[%emt 0:00:05]} 29. Re3 {[%emt 0:01:17]} (29. Bxd6 $2 {perishes.} Rxd6 30. Qg4 Rbd8 $19) (29. Bh6+ $142 Ke8 30. e5 fxe5 31. Re3) 29... Qc5 {[%emt 0:01:14]} 30. Red3 {[%emt 0:00:49] [#] Black must now prevent e5.} Qxc2 {[%emt 0:01:12]} 31. Bh6+ {[%emt 0:01:38]} Ke8 {[%emt 0:00:06]} 32. Qg8+ {[%emt 0:00:10]} Kd7 {[%emt 0:00:02]} 33. Qf7 {[%emt 0:00:14]} Qc5 {[%emt 0:00:35]} 34. Bf4 {[%emt 0:01:07] Weighted Error Value: White=0.49/Black=0.56} 1-0